[Event "Polofinale MCR junioru 2023"]
[Site "Czech Republic"]
[Date "2023.11.18"]
[Round "9.17"]
[White "Vana, Jan"]
[Black "Winter, Ondrej"]
[Result "0-1"]
[TimeControl "90 min per 40 moves + 15 min + 30 sec / move from move 1"]
[WhiteFideId "23726016"]
[BlackFideId "23702192"]
[WhiteElo "1965"]
[BlackElo "2163"]

1. e4 {[%clk 01:30:54]} {[%emt 00:00:06]} d6 {[%clk 01:30:19]} {[%emt
00:00:42]} 2. d4 {[%clk 01:31:18]} {[%emt 00:00:06]} Nf6 {[%clk 01:30:46]}
{[%emt 00:00:03]} 3. Nc3 {[%clk 01:31:42]} {[%emt 00:00:05]} g6 {[%clk
01:31:13]} {[%emt 00:00:03]} 4. f3 {[%clk 01:31:50]} {[%emt 00:00:23]} c6
{[%clk 01:31:28]} {[%emt 00:00:15]} 5. Be3 {[%clk 01:32:13]} {[%emt 00:00:07]}
Nbd7 {[%clk 01:31:50]} {[%emt 00:00:08]} 6. Qd2 {[%clk 01:32:37]} {[%emt
00:00:07]} b5 {[%clk 01:31:45]} {[%emt 00:00:34]} 7. g4 {[%clk 01:32:33]}
{[%emt 00:00:33]} Nb6 {[%clk 01:32:00]} {[%emt 00:00:16]} 8. h4 {[%clk
01:32:55]} {[%emt 00:00:08]} h5 {[%clk 01:32:24]} {[%emt 00:00:05]} 9. g5
{[%clk 01:33:22]} {[%emt 00:00:04]} Nfd7 {[%clk 01:32:51]} {[%emt 00:00:03]} 10.
d5 {[%clk 01:32:16]} {[%emt 00:01:37]} Ne5 {[%clk 01:31:52]} {[%emt 00:01:29]}
11. dxc6 {[%clk 01:31:08]} {[%emt 00:01:37]} Nbc4 {[%clk 01:30:15]} {[%emt
00:02:07]} 12. Bxc4 {[%clk 01:29:00]} {[%emt 00:02:38]} Nxc4 {[%clk 01:30:40]}
{[%emt 00:00:05]} 13. Qd4 {[%clk 01:27:05]} {[%emt 00:02:25]} Rg8 {[%clk
01:28:42]} {[%emt 00:02:27]} 14. Nge2 {[%clk 01:07:16]} {[%emt 00:20:18]} Bg7
{[%clk 00:58:19]} {[%emt 00:30:55]} 15. Qd3 {[%clk 00:58:50]} {[%emt 00:08:55]}
a6 {[%clk 00:55:29]} {[%emt 00:03:21]} 16. Nd5 {[%clk 00:44:12]} {[%emt
00:15:07]} Nxb2 {[%clk 00:31:56]} {[%emt 00:24:03]} 17. Qb3 {[%clk 00:27:16]}
{[%emt 00:17:27]} Nc4 {[%clk 00:31:32]} {[%emt 00:00:54]} 18. Rd1 {[%clk
00:21:42]} {[%emt 00:06:03]} Be6 {[%clk 00:28:35]} {[%emt 00:03:27]} 19. Nef4
{[%clk 00:16:37]} {[%emt 00:05:35]} Qa5+ {[%clk 00:25:09]} {[%emt 00:03:56]} 20.
Kf2 {[%clk 00:16:05]} {[%emt 00:01:01]} Rc8 {[%clk 00:20:34]} {[%emt 00:05:06]}
21. Nxe6 {[%clk 00:06:41]} {[%emt 00:09:55]} fxe6 {[%clk 00:20:53]} {[%emt
00:00:11]} 22. Nb4 {[%clk 00:06:55]} {[%emt 00:00:16]} Rf8 {[%clk 00:20:34]}
{[%emt 00:00:49]} 23. f4 {[%clk 00:04:14]} {[%emt 00:03:10]} Qc7 {[%clk
00:19:00]} {[%emt 00:02:05]} 24. a4 {[%clk 00:01:31]} {[%emt 00:03:13]} Nxe3
{[%clk 00:06:50]} {[%emt 00:12:40]} 25. Kxe3 {[%clk 00:00:55]} {[%emt
00:01:06]} d5 {[%clk 00:07:08]} {[%emt 00:00:12]} 26. e5 {[%clk 00:00:45]}
{[%emt 00:00:39]} Qb6+ {[%clk 00:07:16]} {[%emt 00:00:21]} 27. Ke2 {[%clk
00:00:38]} {[%emt 00:00:37]} Rxf4 {[%clk 00:07:01]} {[%emt 00:00:45]} 28. Rhf1
{[%clk 00:00:38]} {[%emt 00:00:31]} Re4+ {[%clk 00:05:56]} {[%emt 00:01:34]} 29.
Kf3 {[%clk 00:00:37]} {[%emt 00:00:32]} bxa4 {[%clk 00:05:21]} {[%emt
00:01:04]} 30. Nxd5 {[%clk 00:00:38]} {[%emt 00:00:30]} Qxb3+ {[%clk 00:05:28]}
31. cxb3 {[%clk 00:00:59]} {[%emt 00:00:31]} exd5 {[%clk 00:05:54]} {[%emt
00:00:04]} 32. Rxd5 {[%clk 00:01:21]} {[%emt 00:00:08]} Rxe5 {[%clk 00:06:09]}
{[%emt 00:00:15]} 33. Rxe5 {[%clk 00:01:10]} {[%emt 00:00:42]} Bxe5 {[%clk
00:06:33]} {[%emt 00:00:05]} 34. Ke4 {[%clk 00:01:34]} {[%emt 00:00:06]} Rxc6
{[%clk 00:04:52]} {[%emt 00:02:11]} 35. Kxe5 {[%clk 00:01:57]} {[%emt
00:00:08]} axb3 {[%clk 00:05:18]} {[%emt 00:00:04]} 36. Rb1 {[%clk 00:02:04]}
{[%emt 00:00:23]} Rb6 {[%clk 00:05:36]} {[%emt 00:00:12]} 37. Rb2 {[%clk
00:02:11]} {[%emt 00:00:23]} a5 {[%clk 00:05:54]} {[%emt 00:00:13]} 38. Kd4
{[%clk 00:02:36]} {[%emt 00:00:05]} a4 {[%clk 00:06:17]} {[%emt 00:00:07]} 39.
Kc3 {[%clk 00:03:03]} {[%emt 00:00:03]} e5 {[%clk 00:06:03]} {[%emt 00:00:44]}
40. Kc4 {[%clk 00:03:05]} {[%emt 00:00:28]} Ke7 {[%clk 00:06:15]} {[%emt
00:00:18]} 41. Re2 {[%clk 00:03:16]} {[%emt 00:00:19]} b2 {[%clk 00:06:35]}
{[%emt 00:00:10]} 42. Rxe5+ {[%clk 00:03:42]} {[%emt 00:00:03]} Kf7 {[%clk
00:07:02]} {[%emt 00:00:03]} 0-1

[Event "Polofinale MCR junioru 2023"]
[Site "Czech Republic"]
[Date "2023.11.18"]
[Round "9.18"]
[White "Pressler, Tobias"]
[Black "Davidek, Zdenek"]
[Result "1/2-1/2"]
[TimeControl "90 min per 40 moves + 15 min + 30 sec / move from move 1"]
[WhiteFideId "23715359"]
[BlackFideId "23725001"]
[WhiteElo "1937"]
[BlackElo "2099"]

1. e4 {[%clk 01:30:27]} {[%emt 00:00:32]} c5 {[%clk 01:30:14]} {[%emt
00:00:47]} 2. Nc3 {[%clk 01:30:51]} {[%emt 00:00:06]} Nc6 {[%clk 01:30:39]}
{[%emt 00:00:05]} 3. Bb5 {[%clk 01:31:16]} {[%emt 00:00:05]} Nd4 {[%clk
01:30:59]} {[%emt 00:00:08]} 4. Nf3 {[%clk 01:31:42]} {[%emt 00:00:05]} a6
{[%clk 01:31:20]} {[%emt 00:00:10]} 5. Bd3 {[%clk 01:31:57]} {[%emt 00:00:16]}
g6 {[%clk 01:31:36]} {[%emt 00:00:14]} 6. Nxd4 {[%clk 01:31:20]} {[%emt
00:01:07]} cxd4 {[%clk 01:32:00]} {[%emt 00:00:06]} 7. Ne2 {[%clk 01:31:47]}
{[%emt 00:00:03]} d5 {[%clk 01:30:54]} {[%emt 00:01:36]} 8. e5 {[%clk
01:30:23]} {[%emt 00:01:54]} Bg7 {[%clk 01:29:51]} {[%emt 00:01:33]} 9. f4
{[%clk 01:30:40]} {[%emt 00:00:13]} Qb6 {[%clk 01:29:40]} {[%emt 00:00:40]} 10.
O-O {[%clk 01:30:27]} {[%emt 00:00:43]} Bf5 {[%clk 01:28:25]} {[%emt 00:01:46]}
11. Ng3 {[%clk 01:30:36]} {[%emt 00:00:21]} Bxd3 {[%clk 01:24:36]} {[%emt
00:04:18]} 1/2-1/2

[Event "Polofinale MCR junioru 2023"]
[Site "Czech Republic"]
[Date "2023.11.18"]
[Round "9.19"]
[White "Stejskal, Michal"]
[Black "Hozda, Max"]
[Result "1/2-1/2"]
[TimeControl "90 min per 40 moves + 15 min + 30 sec / move from move 1"]
[WhiteFideId "398195"]
[BlackFideId "23725958"]
[WhiteElo "1872"]
[BlackElo "2045"]

1. e4 {[%clk 01:30:53]} {[%emt 00:00:06]} d5 {[%clk 01:27:17]} {[%emt
00:03:45]} 2. exd5 {[%clk 01:31:09]} {[%emt 00:00:13]} Qxd5 {[%clk 01:27:28]}
{[%emt 00:00:12]} 3. Nc3 {[%clk 01:31:14]} {[%emt 00:00:31]} Qe5+ {[%clk
01:26:23]} {[%emt 00:01:36]} 4. Qe2 {[%clk 01:28:30]} {[%emt 00:03:14]} Qxe2+
{[%clk 01:26:18]} {[%emt 00:00:36]} 5. Bxe2 {[%clk 01:28:53]} {[%emt 00:00:06]}
c6 {[%clk 01:26:26]} {[%emt 00:00:22]} 6. Nf3 {[%clk 01:28:52]} {[%emt
00:00:32]} Bf5 {[%clk 01:26:13]} {[%emt 00:00:44]} 7. d3 {[%clk 01:29:08]}
{[%emt 00:00:14]} h6 {[%clk 01:25:19]} {[%emt 00:01:24]} 8. O-O {[%clk
01:29:12]} {[%emt 00:00:25]} Nd7 {[%clk 01:25:05]} {[%emt 00:00:44]} 9. Re1
{[%clk 01:28:56]} {[%emt 00:00:46]} Ngf6 {[%clk 01:24:55]} {[%emt 00:00:41]} 10.
Nd4 {[%clk 01:28:04]} {[%emt 00:01:21]} Bh7 {[%clk 01:24:01]} {[%emt 00:01:24]}
11. Bf3 {[%clk 01:27:47]} {[%emt 00:00:47]} O-O-O {[%clk 01:20:20]} {[%emt
00:04:11]} 12. Be3 {[%clk 01:25:25]} {[%emt 00:02:50]} Ne5 {[%clk 01:08:09]}
{[%emt 00:12:42]} 13. Be2 {[%clk 01:22:54]} {[%emt 00:03:01]} Neg4 {[%clk
01:06:01]} {[%emt 00:02:39]} 14. Nf3 {[%clk 01:21:00]} {[%emt 00:02:24]} Nxe3
{[%clk 01:05:55]} {[%emt 00:00:37]} 15. fxe3 {[%clk 01:21:23]} {[%emt
00:00:06]} Nd7 {[%clk 01:02:22]} {[%emt 00:04:03]} 16. Rad1 {[%clk 01:20:32]}
{[%emt 00:01:21]} e5 {[%clk 00:57:18]} {[%emt 00:05:34]} 17. Bf1 {[%clk
01:18:52]} {[%emt 00:02:09]} Bd6 {[%clk 00:51:17]} {[%emt 00:06:31]} 18. Re2
{[%clk 01:14:38]} {[%emt 00:04:43]} Rhe8 {[%clk 00:49:10]} {[%emt 00:02:38]} 19.
Nd2 {[%clk 01:13:16]} {[%emt 00:01:52]} Nf8 {[%clk 00:40:06]} {[%emt 00:09:34]}
20. g3 {[%clk 01:12:24]} {[%emt 00:01:22]} Ne6 {[%clk 00:39:14]} {[%emt
00:01:23]} 21. Bg2 {[%clk 01:10:17]} {[%emt 00:02:36]} f5 {[%clk 00:36:36]}
{[%emt 00:03:08]} 22. Nc4 {[%clk 01:08:10]} {[%emt 00:02:36]} Bc7 {[%clk
00:36:26]} {[%emt 00:00:41]} 23. Rde1 {[%clk 01:08:07]} {[%emt 00:00:33]} Rf8
{[%clk 00:32:12]} {[%emt 00:04:44]} 24. Rf1 {[%clk 01:05:02]} {[%emt 00:03:35]}
g5 {[%clk 00:28:26]} {[%emt 00:04:16]} 25. Bh3 {[%clk 00:58:48]} {[%emt
00:06:43]} b5 {[%clk 00:27:25]} {[%emt 00:01:32]} 26. Nd2 {[%clk 00:59:11]}
{[%emt 00:00:07]} Bb6 {[%clk 00:24:07]} {[%emt 00:03:49]} 27. Kh1 {[%clk
00:58:54]} {[%emt 00:00:45]} Kc7 {[%clk 00:23:10]} {[%emt 00:01:28]} 28. Nb3
{[%clk 00:56:21]} {[%emt 00:03:03]} a5 {[%clk 00:19:05]} {[%emt 00:04:35]} 29.
a4 {[%clk 00:55:38]} {[%emt 00:01:13]} b4 {[%clk 00:19:21]} {[%emt 00:00:14]}
30. Nb1 {[%clk 00:56:03]} {[%emt 00:00:05]} g4 {[%clk 00:19:06]} {[%emt
00:00:46]} 31. Bg2 {[%clk 00:56:26]} {[%emt 00:00:07]} Bg8 {[%clk 00:13:03]}
{[%emt 00:06:33]} 32. N1d2 {[%clk 00:55:08]} {[%emt 00:01:47]} Nc5 {[%clk
00:09:29]} {[%emt 00:04:05]} 33. Nxc5 {[%clk 00:54:41]} {[%emt 00:00:57]} Bxc5
{[%clk 00:09:57]} {[%emt 00:00:02]} 34. b3 {[%clk 00:54:38]} {[%emt 00:00:33]}
h5 {[%clk 00:07:06]} {[%emt 00:03:21]} 1/2-1/2

[Event "Polofinale MCR junioru 2023"]
[Site "Czech Republic"]
[Date "2023.11.18"]
[Round "9.20"]
[White "Jasso, Matej"]
[Black "Mydlar, Matej"]
[Result "0-1"]
[TimeControl "90 min per 40 moves + 15 min + 30 sec / move from move 1"]
[WhiteFideId "23710748"]
[BlackFideId "23735074"]
[WhiteElo "2033"]
[BlackElo "1809"]

1. e4 {[%clk 01:30:42]} {[%emt 00:00:17]} c5 {[%clk 01:30:36]} {[%emt
00:00:24]} 2. Nf3 {[%clk 01:29:06]} {[%emt 00:02:06]} e6 {[%clk 01:26:49]}
{[%emt 00:04:17]} 3. Qe2 {[%clk 01:26:30]} {[%emt 00:03:06]} Nc6 {[%clk
01:25:29]} {[%emt 00:01:51]} 4. g3 {[%clk 01:25:08]} {[%emt 00:01:51]} Be7
{[%clk 01:24:36]} {[%emt 00:01:23]} 5. Bg2 {[%clk 01:25:14]} {[%emt 00:00:23]}
d5 {[%clk 01:22:38]} {[%emt 00:02:30]} 6. d3 {[%clk 01:25:11]} {[%emt
00:00:33]} Nf6 {[%clk 01:21:31]} {[%emt 00:01:36]} 7. O-O {[%clk 01:23:59]}
{[%emt 00:01:41]} O-O {[%clk 01:20:59]} {[%emt 00:01:02]} 8. e5 {[%clk
01:23:17]} {[%emt 00:01:12]} Nd7 {[%clk 01:21:13]} {[%emt 00:00:17]} 9. c4
{[%clk 01:23:30]} {[%emt 00:00:16]} f6 {[%clk 01:20:34]} {[%emt 00:01:09]} 10.
exf6 {[%clk 01:08:42]} {[%emt 00:15:17]} Nxf6 {[%clk 01:18:18]} {[%emt
00:02:47]} 11. Rd1 {[%clk 01:02:44]} {[%emt 00:06:29]} Bd6 {[%clk 01:09:17]}
{[%emt 00:09:30]} 12. d4 {[%clk 00:58:34]} {[%emt 00:04:40]} cxd4 {[%clk
01:02:07]} {[%emt 00:07:40]} 13. Nxd4 {[%clk 00:53:28]} {[%emt 00:05:36]} Nxd4
{[%clk 01:01:55]} {[%emt 00:00:43]} 14. Rxd4 {[%clk 00:53:47]} {[%emt
00:00:10]} Bc5 {[%clk 01:01:24]} {[%emt 00:01:02]} 15. Rd3 {[%clk 00:51:29]}
{[%emt 00:02:48]} Qb6 {[%emt 00:17:12]} 16. Rb3 {[%clk 00:47:37]} Qa6 {[%clk
00:48:00]} {[%emt 00:01:26]} 17. Be3 {[%clk 00:37:34]} {[%emt 00:10:40]} Bxe3
{[%clk 00:42:56]} {[%emt 00:05:34]} 18. Rxe3 {[%clk 00:35:19]} {[%emt
00:02:45]} d4 {[%clk 00:37:43]} {[%emt 00:05:44]} 19. Rb3 {[%clk 00:27:45]}
{[%emt 00:08:04]} Qd6 {[%clk 00:34:16]} {[%emt 00:03:57]} 20. Nd2 {[%clk
00:26:26]} {[%emt 00:01:48]} e5 {[%clk 00:34:07]} {[%emt 00:00:40]} 21. Re1
{[%clk 00:26:18]} {[%emt 00:00:38]} Re8 {[%clk 00:33:26]} {[%emt 00:01:11]} 22.
Rb5 {[%clk 00:23:47]} {[%emt 00:03:01]} d3 {[%clk 00:27:18]} {[%emt 00:06:38]}
23. Bd5+ {[%clk 00:22:47]} {[%emt 00:01:30]} Qxd5 {[%clk 00:27:17]} {[%emt
00:00:31]} 24. cxd5 {[%clk 00:22:41]} {[%emt 00:00:36]} dxe2 {[%clk 00:27:18]}
{[%emt 00:00:29]} 25. Rxe2 {[%clk 00:23:02]} {[%emt 00:00:09]} b6 {[%clk
00:27:38]} {[%emt 00:00:10]} 26. Rb3 {[%clk 00:22:55]} {[%emt 00:00:37]} Bb7
{[%clk 00:28:00]} {[%emt 00:00:08]} 27. d6 {[%clk 00:22:55]} {[%emt 00:00:30]}
e4 {[%clk 00:27:45]} {[%emt 00:00:45]} 28. Ra3 {[%clk 00:22:18]} {[%emt
00:01:08]} Re6 {[%clk 00:27:25]} {[%emt 00:00:48]} 29. f3 {[%clk 00:21:10]}
{[%emt 00:01:39]} Rxd6 {[%clk 00:27:29]} {[%emt 00:00:27]} 30. fxe4 {[%clk
00:20:40]} {[%emt 00:01:00]} Re6 {[%clk 00:27:42]} {[%emt 00:00:16]} 31. e5
{[%clk 00:20:32]} {[%emt 00:00:38]} Ng4 {[%clk 00:27:42]} {[%emt 00:00:29]} 32.
Nc4 {[%clk 00:15:19]} {[%emt 00:05:43]} Bd5 {[%clk 00:26:49]} {[%emt 00:01:24]}
33. Rc3 {[%clk 00:13:23]} {[%emt 00:02:26]} Rae8 {[%clk 00:25:33]} {[%emt
00:01:47]} 34. Nd6 {[%clk 00:06:28]} {[%emt 00:07:25]} Rxd6 {[%clk 00:20:08]}
{[%emt 00:05:55]} 35. exd6 {[%clk 00:06:46]} {[%emt 00:00:11]} Rxe2 {[%clk
00:20:34]} {[%emt 00:00:04]} 36. Rc8+ {[%clk 00:07:07]} {[%emt 00:00:09]} Kf7
{[%clk 00:21:00]} {[%emt 00:00:04]} 37. Kf1 {[%clk 00:07:34]} {[%emt 00:00:04]}
Bf3 {[%clk 00:20:52]} {[%emt 00:00:38]} 38. Rc7+ {[%clk 00:02:00]} {[%emt
00:06:03]} Kf6 {[%clk 00:20:51]} {[%emt 00:00:31]} 39. d7 {[%clk 00:01:55]}
{[%emt 00:00:36]} Ne3+ {[%clk 00:21:16]} {[%emt 00:00:05]} 40. Kg1 {[%clk
00:02:14]} {[%emt 00:00:10]} Rg2+ {[%clk 00:21:42]} {[%emt 00:00:05]} 0-1

[Event "Polofinale MCR junioru 2023"]
[Site "Czech Republic"]
[Date "2023.11.18"]
[Round "9.21"]
[White "Veny, Jaume"]
[Black "Mametev, Artem"]
[Result "0-1"]
[TimeControl "90 min per 40 moves + 15 min + 30 sec / move from move 1"]
[WhiteFideId "397792"]
[BlackFideId "23710195"]
[WhiteElo "1729"]
[BlackElo "2024"]

1. b3 {[%clk 01:30:57]} {[%emt 00:00:03]} e5 {[%clk 01:20:42]} {[%emt
00:10:19]} 2. e4 {[%clk 01:30:50]} {[%emt 00:00:37]} Nf6 {[%clk 01:20:16]}
{[%emt 00:00:56]} 3. d3 {[%clk 01:30:56]} {[%emt 00:00:24]} Nc6 {[%clk
01:19:48]} {[%emt 00:00:58]} 4. Bb2 {[%clk 01:31:03]} {[%emt 00:00:22]} Bc5
{[%clk 01:15:40]} {[%emt 00:04:39]} 5. Be2 {[%clk 01:29:34]} {[%emt 00:01:58]}
O-O {[%clk 01:12:52]} {[%emt 00:03:20]} 6. Nf3 {[%clk 01:29:51]} {[%emt
00:00:12]} d6 {[%clk 01:13:12]} {[%emt 00:00:10]} 7. O-O {[%clk 01:24:29]}
{[%emt 00:05:52]} h6 {[%clk 01:10:03]} {[%emt 00:03:40]} 8. Nc3 {[%clk
01:20:03]} {[%emt 00:04:55]} a5 {[%clk 01:08:14]} {[%emt 00:02:19]} 9. Nd5
{[%clk 01:13:22]} {[%emt 00:07:11]} Be6 {[%clk 01:04:16]} {[%emt 00:04:28]} 10.
Ne3 {[%clk 01:12:16]} {[%emt 00:01:36]} a4 {[%clk 00:58:00]} {[%emt 00:06:47]}
11. Qd2 {[%clk 01:09:39]} {[%emt 00:03:06]} Re8 {[%clk 00:53:36]} {[%emt
00:04:55]} 12. Rae1 {[%clk 01:07:25]} {[%emt 00:02:42]} Kh7 {[%clk 00:40:49]}
{[%emt 00:13:18]} 13. h3 {[%clk 00:57:32]} {[%emt 00:10:24]} Qd7 {[%clk
00:33:10]} {[%emt 00:08:08]} 14. Nh2 {[%clk 00:57:36]} {[%emt 00:00:26]} axb3
{[%clk 00:32:27]} {[%emt 00:01:13]} 15. axb3 {[%clk 00:57:58]} {[%emt
00:00:09]} Ra2 {[%clk 00:32:43]} {[%emt 00:00:14]} 16. Rb1 {[%clk 00:56:58]}
{[%emt 00:01:30]} Bd4 {[%clk 00:27:44]} {[%emt 00:05:28]} 17. Qc1 {[%clk
00:44:32]} {[%emt 00:12:56]} Rea8 {[%clk 00:23:27]} {[%emt 00:04:47]} 18. f4
{[%clk 00:39:28]} {[%emt 00:05:34]} Bxb2 {[%clk 00:21:51]} {[%emt 00:02:07]} 19.
Rxb2 {[%clk 00:39:45]} {[%emt 00:00:13]} Nd4 {[%clk 00:22:18]} {[%emt
00:00:03]} 20. Bd1 {[%clk 00:38:43]} {[%emt 00:01:33]} exf4 {[%clk 00:08:21]}
{[%emt 00:14:27]} 21. Rxa2 {[%clk 00:35:43]} {[%emt 00:03:29]} Rxa2 {[%clk
00:08:36]} {[%emt 00:00:13]} 22. Rxf4 {[%clk 00:35:55]} {[%emt 00:00:20]} Qe7
{[%clk 00:08:30]} {[%emt 00:00:36]} 23. Qb1 {[%clk 00:34:26]} {[%emt 00:01:58]}
Ra8 {[%clk 00:06:31]} {[%emt 00:02:29]} 24. Qb2 {[%clk 00:34:38]} {[%emt
00:00:18]} c5 {[%clk 00:05:51]} {[%emt 00:01:10]} 25. c3 {[%clk 00:28:14]}
{[%emt 00:06:55]} Nc6 {[%clk 00:06:05]} {[%emt 00:00:16]} 26. Bc2 {[%clk
00:28:23]} {[%emt 00:00:20]} Kg8 {[%clk 00:05:43]} {[%emt 00:00:53]} 27. Nhg4
{[%clk 00:23:27]} {[%emt 00:05:26]} Nxg4 {[%clk 00:05:42]} {[%emt 00:00:30]} 28.
Nxg4 {[%clk 00:23:50]} {[%emt 00:00:07]} Bxg4 {[%clk 00:05:56]} {[%emt
00:00:16]} 29. Rxg4 {[%clk 00:23:59]} {[%emt 00:00:21]} Qe5 {[%clk 00:06:13]}
{[%emt 00:00:14]} 30. h4 {[%clk 00:19:55]} {[%emt 00:04:35]} b5 {[%clk
00:05:06]} {[%emt 00:01:37]} 31. Qc1 {[%clk 00:09:53]} {[%emt 00:10:31]} Qxc3
{[%clk 00:04:40]} {[%emt 00:00:56]} 32. Qxh6 {[%clk 00:09:13]} {[%emt
00:01:10]} Ra1+ {[%clk 00:05:06]} {[%emt 00:00:04]} 33. Kh2 {[%clk 00:09:32]}
{[%emt 00:00:11]} Qe5+ {[%clk 00:05:23]} {[%emt 00:00:13]} 34. g3 {[%clk
00:09:20]} {[%emt 00:00:41]} Ra2 {[%clk 00:05:40]} {[%emt 00:00:14]} 0-1

[Event "Polofinale MCR junioru 2023"]
[Site "Czech Republic"]
[Date "2023.11.18"]
[Round "9.22"]
[White "Svadlenka, Michal"]
[Black "Rousek, Jan"]
[Result "0-1"]
[TimeControl "90 min per 40 moves + 15 min + 30 sec / move from move 1"]
[WhiteFideId "23717068"]
[BlackFideId "386669"]
[WhiteElo "1689"]
[BlackElo "2006"]

1. e4 {[%clk 01:28:08]} {[%emt 00:02:51]} c5 {[%clk 01:30:54]} {[%emt
00:00:06]} 2. Nf3 {[%clk 01:28:35]} {[%emt 00:00:04]} e6 {[%clk 01:31:19]}
{[%emt 00:00:05]} 3. d4 {[%clk 01:29:00]} {[%emt 00:00:05]} cxd4 {[%clk
01:31:44]} {[%emt 00:00:04]} 4. Nxd4 {[%clk 01:29:25]} {[%emt 00:00:06]} Nf6
{[%clk 01:32:09]} {[%emt 00:00:04]} 5. Nc3 {[%clk 01:29:49]} {[%emt 00:00:07]}
Nc6 {[%clk 01:32:34]} {[%emt 00:00:05]} 6. Be3 {[%clk 01:29:18]} {[%emt
00:01:01]} Bb4 {[%clk 01:32:47]} {[%emt 00:00:17]} 7. f3 {[%clk 01:27:48]}
{[%emt 00:02:02]} d5 {[%clk 01:31:04]} {[%emt 00:02:12]} 8. exd5 {[%clk
01:18:42]} {[%emt 00:09:37]} Nxd5 {[%clk 01:29:00]} {[%emt 00:02:33]} 9. Nxc6
{[%clk 01:19:04]} {[%emt 00:00:08]} bxc6 {[%clk 01:28:52]} {[%emt 00:00:37]} 10.
Bd4 {[%clk 01:17:30]} {[%emt 00:02:04]} O-O {[%clk 01:01:39]} {[%emt 00:27:43]}
11. Qd2 {[%clk 01:11:33]} {[%emt 00:06:27]} e5 {[%clk 00:57:55]} {[%emt
00:04:14]} 12. Bf2 {[%clk 01:10:26]} {[%emt 00:01:37]} Qa5 {[%clk 00:57:11]}
{[%emt 00:01:14]} 13. O-O-O {[%clk 00:59:52]} {[%emt 00:11:04]} Nxc3 {[%clk
00:55:02]} {[%emt 00:02:38]} 0-1

[Event "Polofinale MCR junioru 2023"]
[Site "Czech Republic"]
[Date "2023.11.18"]
[Round "9.24"]
[White "Pecka, Jan"]
[Black "Sprinar, Michal"]
[Result "1-0"]
[TimeControl "90 min per 40 moves + 15 min + 30 sec / move from move 1"]
[WhiteFideId "23712520"]
[BlackFideId "23714190"]
[WhiteElo "1999"]
[BlackElo "1742"]

1. d4 {[%clk 01:20:31]} {[%emt 00:10:28]} Nf6 {[%clk 01:30:48]} {[%emt
00:00:12]} 2. c4 {[%clk 01:20:50]} {[%emt 00:00:11]} g6 {[%clk 01:31:14]}
{[%emt 00:00:04]} 3. Nc3 {[%clk 01:21:13]} {[%emt 00:00:07]} d5 {[%clk
01:31:40]} {[%emt 00:00:04]} 4. cxd5 {[%clk 01:21:30]} {[%emt 00:00:14]} Nxd5
{[%clk 01:32:05]} {[%emt 00:00:05]} 5. Bd2 {[%clk 01:21:49]} {[%emt 00:00:10]}
Bg7 {[%clk 01:31:57]} {[%emt 00:00:38]} 6. e4 {[%clk 01:16:42]} {[%emt
00:05:37]} Nxc3 {[%clk 01:31:57]} {[%emt 00:00:30]} 7. Bxc3 {[%clk 01:17:05]}
{[%emt 00:00:07]} Nd7 {[%clk 01:29:50]} {[%emt 00:02:36]} 8. Nf3 {[%clk
01:17:14]} {[%emt 00:00:21]} Nf6 {[%clk 01:30:06]} {[%emt 00:00:14]} 9. Bd3
{[%clk 01:15:42]} {[%emt 00:02:02]} O-O {[%clk 01:30:26]} {[%emt 00:00:10]} 10.
O-O {[%clk 01:15:16]} {[%emt 00:00:55]} c6 {[%clk 01:24:44]} {[%emt 00:06:13]}
11. h3 {[%clk 01:14:23]} {[%emt 00:01:23]} Qb6 {[%clk 01:20:23]} {[%emt
00:04:50]} 12. Qd2 {[%clk 01:12:51]} {[%emt 00:02:02]} Be6 {[%clk 01:17:51]}
{[%emt 00:03:01]} 13. Ba5 {[%clk 01:13:03]} {[%emt 00:00:20]} Nxe4 {[%clk
01:16:30]} {[%emt 00:01:51]} 14. Bxe4 {[%clk 01:12:50]} {[%emt 00:00:41]} Qb5
{[%clk 01:16:48]} {[%emt 00:00:12]} 15. Bc3 {[%clk 01:11:08]} {[%emt 00:02:12]}
Qh5 {[%clk 01:14:11]} {[%emt 00:03:07]} 16. Qg5 {[%clk 01:10:43]} {[%emt
00:00:56]} 1-0